lending/lending_fUSD_20240128
["ID","MTS","AMOUNT","RATE_DAILY","PERIOD"]
[312904779,1706449840923,-1258.4088332,0.00023,2]
[312904780,1706449840968,-953.84846005,0.00023,2]
[312904781,1706449840980,-660.00660538,0.00023,2]
[312904783,1706449840991,-305.667511,0.00023,2]
[312904965,1706449842899,-165.46326714,0.0002262,2]
[312904967,1706449842909,-247.21229735,0.00023,2]
[312904969,1706449842920,-2004.971,0.00023,2]
[312904971,1706449842955,-1381.50033256,0.00023,2]
[312904982,1706449845755,-566.28970534,0.00023,2]
[312904983,1706449845812,-868.5287917,0.00023,2]
[312904984,1706449845869,-555.754,0.00023,2]
[312904986,1706449855534,2801.99429503,0.00022078,2]
[312904987,1706449932012,415.55728052,0.0002313,7]
[312904988,1706449972458,179.11,0.00020496,2]
[312904989,1706449979576,203.36,0.00022409,2]
[312904990,1706449983097,478.90161544,0.000225,2]
[312904999,1706450067637,152.42,0.00021998,2]
[312905002,1706450082283,332.4458244,0.0002465,9]
[312905003,1706450087635,332.4458244,0.000264,11]
[312905010,1706450191138,935.91,0.00021907,2]
[312905012,1706450222621,199.46749464,0.0002465,9]
[312905013,1706450223954,1448.94,0.00021915,2]
[312905014,1706450227614,199.46749464,0.000264,11]
[312905015,1706450235907,200.0,0.00021954,2]
[312905017,1706450256626,990.0,0.00023,7]
[312905018,1706450256939,990.0,0.00023,7]
[312905019,1706450257186,567.489878,0.00023,7]
[312905020,1706450266771,17834.12,0.00021915,2]
[312905021,1706450274120,13039.11955323,0.00021914,2]
[312905023,1706450390442,170.15,0.00020072,2]
[312905024,1706450390659,170.15,0.00022336,2]
[312905025,1706450457819,305.64130815,0.00020696,2]
[312905026,1706450486118,4171.30137098,0.00016752,2]
[312905027,1706450496790,534.41983348,0.00022336,2]
[312905029,1706450500104,4171.30137098,0.00016752,2]
[312905030,1706450520748,534.77102756,0.00022336,2]
[312905031,1706450522094,4171.30137098,0.00012564,2]
[312905032,1706450540867,533.48627565,0.00016752,2]
[312905034,1706450613864,210.0,0.00022392,2]
[312905035,1706450614122,210.0,0.0002657,8]
[312905036,1706450627526,779.92,0.00021897,2]
[312905037,1706450633202,442.63,0.000225,2]
[312905038,1706450652703,840.0,0.00021961,2]
[312905044,1706450897338,153.13,0.00020065,2]
[312905045,1706450897557,153.13,0.00022329,2]
[312905081,1706451005362,152.42,0.00021916,2]
[312905085,1706451031857,-1229.37654681,0.00022593,2]
[312905086,1706451031866,-943.02806725,0.00022594,2]
[312905087,1706451031877,-155.0,0.00022594,2]
[312905088,1706451031888,-478.62370535,0.00022595,2]
[312905089,1706451031901,-165.46326714,0.00022605,2]
[312905090,1706451031915,-264.96090513,0.00022705,2]
[312905091,1706451031930,-452.97909487,0.00022705,2]
[312905092,1706451031941,-717.28,0.00022705,2]
[312905093,1706451031952,-368.27878723,0.00022707,2]
[312905094,1706451031965,-346.34121277,0.00022707,2]
[312905095,1706451031974,-506.91779592,0.00022708,2]
[312905096,1706451031993,-215.50220408,0.00022708,2]
[312905097,1706451032003,-417.33505441,0.00022708,2]
[312905098,1706451032014,-82.65494559,0.00022708,2]
[312905099,1706451032024,-2997.57454927,0.00022708,2]
[312905100,1706451032040,-501.9,0.00022708,2]
[312905101,1706451032052,-302.6740637,0.00022708,2]
[312905102,1706451032064,-16197.84138703,0.00022708,2]
[312905103,1706451032073,-1919.68,0.00022708,2]
[312905104,1706451032082,-1439.11,0.00022708,2]
[312905105,1706451032092,-725.6,0.00022708,2]
[312905106,1706451032102,-736.55,0.00022709,2]
[312905107,1706451032113,-14322.97,0.00022709,2]
[312905108,1706451032123,-733.89,0.00022709,2]
[312905109,1706451032133,-731.05,0.0002271,2]
[312905110,1706451032142,-574.2,0.0002271,2]
[312905112,1706451032153,-711.87,0.00022711,2]
[312905114,1706451032162,-719.13,0.00022712,2]
[312905116,1706451032171,-712.59,0.00022713,2]
[312905118,1706451032180,-165.46326714,0.00022753,2]
[312905120,1706451032190,-374.06886083,0.00022899,3]
[312905122,1706451032199,-3498.80391503,0.00022899,2]
[312905124,1706451032214,-1316.20749776,0.00022899,2]
[312905198,1706451038626,-2980.07804206,0.00022899,2]
[312905199,1706451038636,-638.65795794,0.000229,2]
[312905200,1706451038680,-1051.49584074,0.000229,2]
[312905201,1706451038689,-162.64273316,0.000229,2]
[312905202,1706451038698,-5000.0,0.000229,2]
[312905203,1706451038707,-2277.76640593,0.000229,2]
[312905204,1706451038716,-152.03363277,0.000229,2]
[312905205,1706451038726,-165.46326714,0.000229,2]
[312905206,1706451038735,-782.11709028,0.000229,2]
[312905207,1706451038744,-798.66100196,0.000229,2]
[312905208,1706451038754,-2433.83625556,0.000229,2]
[312905209,1706451038763,-427.17832472,0.000229,2]
[312905210,1706451038772,-158.35484109,0.0002299,2]
[312905211,1706451038781,-156.49862933,0.00022998,2]
[312905212,1706451038791,-330.19625724,0.00022998,2]
[312905213,1706451038800,-6944.82204866,0.00022998,2]
[312905217,1706451038833,-7394.46036938,0.00022998,2]
[312905218,1706451038842,-170.30905286,0.00022998,2]
[312905219,1706451038851,-52281.3923727,0.00022998,2]
[312905220,1706451038860,-1317.93249377,0.00022998,2]
[312905221,1706451038870,-16733.15352915,0.00022998,2]
[312905222,1706451038880,-400.0,0.00022999,2]
[312905223,1706451038890,-525.09271262,0.00022999,2]
[312905225,1706451038899,-2934.28598299,0.00022999,2]
[312905227,1706451038910,-1081.22083065,0.00022999,2]
[312905229,1706451038920,-231.65169063,0.00022999,2]
[312905231,1706451038929,-150.0,0.00022999,2]
[312905233,1706451038938,-1000.0,0.00022999,2]
[312905235,1706451038947,-553.0,0.00023,2]
[312905237,1706451038957,-55176.3391954,0.00023,2]
[312905386,1706451040411,-1026.95675236,0.00023,2]
[312905388,1706451040423,-542.60373917,0.00023,2]
[312905394,1706451040469,-3179.34818121,0.00023,2]
[312905396,1706451040480,-8308.58258296,0.00023,2]
[312905398,1706451040491,-2242.53088869,0.00023,2]
[312905406,1706451040552,-4.10833397,0.00023,2]
[312905472,1706451041157,-10437.31798,0.00023,2]
[312905475,1706451041168,-2923.62999489,0.00023,2]
[312905643,1706451042876,-166.02288615,0.000229,2]
[312905644,1706451042886,-447.0753714,0.00023,2]
[312905646,1706451042898,-371.88983172,0.00023,2]
[312905651,1706451042949,-293.0,0.00023,2]
[312905654,1706451042961,-2044.80001,0.00023,2]
[312905668,1706451043085,-10840.0,0.00023,2]
[312905675,1706451043147,-427.72132535,0.00023,2]
[312905677,1706451043158,-980.93474225,0.00023,2]
[312905724,1706451045906,-943.02806725,0.00022999,2]
[312905725,1706451045920,-126286.93796588,0.00023,2]
[312905726,1706451046062,-16964.4,0.00023,2]
[312905727,1706451046078,-296.30780668,0.00023,2]
[312905771,1706451051669,1229.37654681,0.00020699,2]
[312905772,1706451065682,315.08694835,0.00020698,2]
[312905780,1706451149275,200.0,0.000225,2]
[312905785,1706451222650,150.0,0.000225,2]
[312905791,1706451285854,900.0,0.000225,2]
[312905798,1706451421121,150.0,0.0003025,90]
[312905811,1706451456810,196.77,0.0002251,2]
[312905828,1706451835647,153.13,0.00020697,2]
[312905829,1706451845262,152.42,0.00022468,2]
[312905830,1706451929347,704.44,0.00022404,2]
[312905831,1706451947763,10068.346423,0.0002242,2]
[312905841,1706452035090,-1000.0,0.00022529,2]
[312905842,1706452035110,-279.82822608,0.0002253,2]
[312905843,1706452035128,-398.85308779,0.0002253,2]
[312905844,1706452035148,-194.08,0.0002269,2]
[312905845,1706452035168,-5000.0,0.00022716,2]
[312905846,1706452035187,-1372.58795079,0.00022766,2]
[312905847,1706452035207,-246.42285494,0.00022766,2]
[312905848,1706452035227,-1401.0,0.0002277,2]
[312905849,1706452035248,-800.0,0.00022815,2]
[312905850,1706452035271,-200.0,0.00022816,2]
[312905851,1706452035293,-800.0,0.00022816,2]
[312905852,1706452035314,-800.0,0.00022816,2]
[312905853,1706452035334,-200.0,0.00022816,2]
[312905854,1706452035353,-541.7123,0.00022898,2]
[312905855,1706452035373,-2809.8,0.00022898,2]
[312905856,1706452035392,-1000.0,0.00022899,2]
[312905857,1706452035412,-2006.5353,0.000229,2]
[312905858,1706452035432,-1000.0,0.000229,2]
[312905859,1706452035452,-189.4381,0.000229,2]
[312905860,1706452035472,-22574.3785,0.000229,2]
[312905861,1706452035492,-1020.5537,0.000229,2]
[312905862,1706452035512,-2442.8482,0.000229,2]
[312905863,1706452035533,-178.03401367,0.000229,2]
[312905864,1706452035553,-5000.0,0.000229,2]
[312905865,1706452035574,-1458.5542322,0.000229,2]
[312905866,1706452035593,-1194.06499518,0.000229,2]
[312905867,1706452035613,-11028.2549267,0.000229,2]
[312905868,1706452035633,-503.91173672,0.000229,2]
[312905869,1706452035653,-329.90092671,0.00022996,3]
[312905870,1706452035672,-533.3554065,0.00022996,2]
[312905871,1706452035693,-493.45959145,0.00022996,2]
[312905872,1706452035713,-6445.94467404,0.00022996,2]
[312905873,1706452035733,-4450.0,0.00022997,2]
[312905874,1706452035753,-497.83874033,0.00022997,2]
[312905875,1706452035772,-294.65299376,0.00022998,2]
[312905876,1706452035791,-73198.24979808,0.00022998,2]
[312905897,1706452081454,-152.05423228,0.000229,2]
[312905898,1706452081476,-847.94576772,0.000229,2]
[312905899,1706452088353,-1552.94473264,0.000229,2]
[312905900,1706452088376,-372.76356821,0.00022998,3]
[312905901,1706452088397,-844.63414755,0.00022998,2]
[312905902,1706452088418,-12229.6575516,0.00022998,2]
[312905903,1706452094020,-5000.0,0.00022998,2]
[312905904,1706452130349,-398.85308779,0.00022899,2]
[312905905,1706452130370,-1577.24713164,0.00022899,2]
[312905906,1706452130389,-5000.0,0.000229,2]
[312905907,1706452130409,-3023.89978057,0.00022998,2]
[312905908,1706452143340,-325.88291615,0.00022998,3]
[312905909,1706452143360,-28595.78066085,0.00022998,2]
[312905911,1706452201099,168.31,0.0001985,2]
[312905938,1706452232961,-207.80245874,0.00022897,2]
[312905939,1706452232971,-81.55588574,0.00022898,2]
[312905941,1706452232983,-274.57115086,0.00022898,2]
[312905946,1706452233017,-1699.1463634,0.00022898,2]
[312905948,1706452233027,-1276.23495321,0.000229,2]
[312905949,1706452233036,-356.85468644,0.000229,2]
[312905951,1706452233045,-625.69367224,0.000229,2]
[312905952,1706452233055,-4111.1327963,0.000229,2]
[312905954,1706452233127,-888.8672037,0.000229,2]
[312905955,1706452233136,-226.69261519,0.0002299,2]
[312905956,1706452233145,-300.0,0.00022997,2]
[312905957,1706452233154,-253.49408884,0.00022998,3]
[312905958,1706452233163,-1218.29390527,0.00022998,2]
[312905959,1706452233236,-1000.0,0.00022998,2]
[312905963,1706452238105,-245.54572197,0.000229,2]
[312905964,1706452238115,-7014.66719411,0.00022998,2]
[312905965,1706452238124,-1841.93163,0.00022998,2]
[312905966,1706452238133,-5182.8565254,0.00022998,2]
[312905967,1706452238142,-257.3635471,0.00022999,2]
[312905968,1706452238151,-526.01403717,0.00022999,2]
[312905969,1706452238160,-233.44048227,0.00022999,2]
[312905970,1706452238170,-306.0102269,0.00022999,2]
[312905971,1706452238179,-530.71266185,0.00022999,2]
[312905972,1706452238187,-1000.0,0.00022999,2]
[312905973,1706452238197,-3303.45578245,0.00022999,2]
[312905974,1706452238206,-41428.47736447,0.00023,2]
[312905975,1706452238218,-424.74700235,0.00023,2]
[312905976,1706452238230,-407802.07176762,0.00023,2]
[312905977,1706452238241,-132321.94381455,0.00023,2]
[312905978,1706452238264,-5178.01565597,0.00023,2]
[312905979,1706452238275,-808259.19205853,0.00023,2]
[312905980,1706452238285,-669859.84877737,0.00023,2]
[312905981,1706452238294,-731.91,0.00023,2]
[312905982,1706452238304,-1368571.66757928,0.00023,2]
[312905983,1706452238342,-20290.64568081,0.00023,2]
[312905984,1706452238353,-136099.33005627,0.00023,2]
[312905985,1706452238364,-67781.67592913,0.00023,2]
[312905991,1706452238426,-3153.28430224,0.00023,2]
[312905993,1706452238437,-1578.3,0.00023,2]
[312906277,1706452241196,-4001.5,0.00023,2]
[312906284,1706452241251,-1009.36561679,0.00023,2]
[312906297,1706452241363,-1776.20345175,0.00023,2]
[312906393,1706452243183,-1402.35342738,0.00023,2]
[312906394,1706452243194,-3210.98426152,0.00023,2]
[312906395,1706452243347,-20537.17476851,0.00023,2]
[312906412,1706452246226,-2575.3947971,0.00023,2]
[312906415,1706452246961,-124039.84000003,0.00023,2]
[312906416,1706452246973,-158043.36049363,0.00023,2]
[312906417,1706452246988,-737.23086319,0.00023,2]
[312906418,1706452247106,-103395.68814702,0.00023,2]
[312906419,1706452247127,-5153.6,0.00023,2]
[312906420,1706452265993,326.8127044,0.00022999,10]
[312906421,1706452266046,326.81270441,0.00022999,10]
[312906424,1706452676041,15000.0,0.0003025,90]
[312906426,1706452744830,153.13,0.00021156,2]
[312906428,1706452796462,-207.80245874,0.00022557,2]
[312906429,1706452807936,-385.11059656,0.00022558,2]
[312906441,1706452956382,27.79,0.00022505,2]
[312906444,1706453262771,153.13,0.00021367,2]
[312906464,1706453432312,-207.80245874,0.00022668,2]
[312906465,1706453432322,-840.31688547,0.00022669,2]
[312906466,1706453432331,-157.92669789,0.00022716,2]
[312906467,1706453432450,-300.0,0.00022769,2]
[312906468,1706453432460,-11590.82264086,0.0002277,2]
[312906469,1706453432469,-200.0,0.00022816,2]
[312906470,1706453432478,-800.0,0.00022816,2]
[312906472,1706453432487,-200.0,0.00022816,2]
[312906474,1706453432496,-1000.0,0.000229,2]
[312906476,1706453432505,-42827.11633512,0.000229,2]
[312906478,1706453432518,-1506.50744281,0.000229,2]
[312906481,1706453432539,-9738.12439792,0.000229,2]
[312906484,1706453432550,-324.4017795,0.000229,2]
[312906490,1706453438153,-92644.67194465,0.000229,2]
[312906491,1706453438163,-1000.0,0.000229,2]
[312906492,1706453438174,-5000.0,0.000229,2]
[312906493,1706453438183,-155.35342734,0.000229,2]
[312906494,1706453438192,-157.92669789,0.000229,2]
[312906495,1706453438201,-2637.34416524,0.000229,2]
[312906496,1706453438210,-348.434193,0.00022998,2]
[312906497,1706453438220,-483.08256668,0.00022999,2]
[312906498,1706453438229,-1000.0,0.00022999,2]
[312906499,1706453438238,-272032.64799252,0.00023,2]
[312906500,1706453438249,-785.17015865,0.00023,2]
[312906501,1706453438261,-1016.94337793,0.00023,2]
[312906502,1706453438373,-1784965.47921623,0.00023,2]
[312906503,1706453438382,-1062457.13919895,0.00023,2]
[312906504,1706453438426,-86216.45970486,0.00023,2]
[312906505,1706453438439,-27812.41946897,0.00023,2]
[312906506,1706453438452,-59292.94272331,0.00023,2]
[312906507,1706453438463,-306082.87843868,0.00023,2]
[312906508,1706453438482,-1337.64934006,0.00023,2]
[312906509,1706453438493,-19576.75535955,0.00023,2]
[312906805,1706453441268,-130961.93673841,0.00023,2]
[312906807,1706453441280,-1313.643421,0.00023,2]
[312906810,1706453441291,-1965.79288405,0.00023,2]
[312906816,1706453441343,-34.13275935,0.00023,2]
[312906819,1706453441354,-1462.36986015,0.00023,2]
[312906822,1706453441380,-834.28714186,0.00023,2]
[312906825,1706453441391,-1075.51440885,0.00023,2]
[312906827,1706453441401,-28614.79889811,0.00023,2]
[312906832,1706453441435,-1424.40289611,0.00023,2]
[312906834,1706453441447,-1942.37721319,0.00023,2]
[312906836,1706453441458,-289.96267146,0.00023,2]
[312906841,1706453441491,-16854.95017505,0.00023,2]
[312906854,1706453441607,-699.65573577,0.00023,2]
[312906954,1706453443259,-677.72880012,0.00023,2]
[312906963,1706453443367,-1308.87203521,0.00023,2]
[312906964,1706453443379,-25822.51945069,0.00023,2]
[312906965,1706453443475,-1334.40390831,0.00023,2]
[312906976,1706453446611,-200951.15832582,0.00023,2]
[312906981,1706453612763,-3278.0,0.00022502,2]
[312906983,1706453645268,500.0,0.0002,2]
[312906986,1706453666538,203.35,0.00022335,2]
[312906987,1706453668192,203.08852604,0.000225,2]
[312906989,1706453682088,500.0,0.00022355,2]
[312906990,1706453682327,199.86,0.00020437,2]
[312906993,1706453704825,250.0,0.00022181,2]
[312906999,1706453742419,685.15,0.00022171,2]
[312907002,1706453770850,6697.62,0.00022333,2]
[312907003,1706453853704,209.0,0.00021749,2]
[312907004,1706453853954,209.0,0.00025999,8]
[312907005,1706453892098,164.46,0.000224,2]
[312907006,1706453902607,500.0,0.00022206,2]
[312907008,1706454001905,5201.38181471,0.00022206,2]
[312907009,1706454019880,5293.77447696,0.00022206,2]
[312907010,1706454028854,2178.05,0.00022198,2]
[312907011,1706454049418,328.0,0.0002226,2]
[312907012,1706454056185,310.18827035,0.00022198,2]
[312907013,1706454060809,1201.28781862,0.00021976,2]
[312907014,1706454061763,858.49705466,0.00022198,2]
[312907015,1706454072905,156.17730626,0.00022198,2]
[312907016,1706454083782,807.09863689,0.00022198,2]
[312907017,1706454106818,220.47098243,0.00022198,2]
[312907018,1706454106887,155.82902494,0.00022198,2]
[312907019,1706454108097,155.69520652,0.00022198,2]
[312907020,1706454108398,155.73623937,0.00022198,2]
[312907021,1706454111735,155.34631655,0.00022198,2]
[312907022,1706454112192,198.33504371,0.00022198,2]
[312907023,1706454113590,245.13099503,0.00020696,2]
[312907024,1706454113891,1780.40489126,0.00022198,2]
[312907025,1706454115027,155.0,0.00022198,2]
[312907026,1706454116845,155.74242407,0.00022198,2]
[312907027,1706454119863,155.86556523,0.00020696,2]
[312907028,1706454119888,155.86553796,0.00022198,2]
[312907029,1706454120186,533.75788513,0.00022198,2]
[312907030,1706454122865,155.0,0.00022198,2]
[312907031,1706454125369,155.39166084,0.00022198,2]
[312907032,1706454140754,206.5680995,0.00022198,2]
[312907033,1706454142786,237.28,0.00020634,2]
[312907034,1706454147822,848.04190191,0.00022198,2]
[312907035,1706454152301,1028.58275249,0.00022198,2]
[312907036,1706454162128,1228.53056958,0.00020696,2]
[312907037,1706454162801,2182.6793036,0.00021976,2]
[312907038,1706454167818,869.21323266,0.00022198,2]
[312907039,1706454172292,1024.73961349,0.00022198,2]
[312907040,1706454179340,283.34438289,0.00022198,2]
[312907041,1706454180812,1210.46446635,0.00021976,2]
[312907042,1706454180837,974.4611383,0.00021976,2]
[312907043,1706454190979,200.0,0.00021918,2]
[312907044,1706454191617,735.16,0.00022444,2]
[312907045,1706454192308,502.31763013,0.00022198,2]
[312907046,1706454194056,800.0,0.00021918,2]
[312907047,1706454195339,283.34438289,0.00022198,2]
[312907050,1706454198705,204.150342,0.000218,2]
[312907051,1706454200814,1899.47655458,0.00021976,2]
[312907053,1706454207447,1034.28572866,0.00021918,2]
[312907054,1706454215341,283.34438289,0.00021918,2]
[312907055,1706454228290,2158.78763942,0.00021918,2]
[312907056,1706454233344,283.34438289,0.00021918,2]
[312907058,1706454255343,251.63132288,0.00021918,2]
[312907059,1706454281063,1852.42,0.00022097,2]
[312907060,1706454311829,415.9,0.00021942,2]
[312907062,1706454365090,216.8,0.00021621,2]
[312907109,1706454444302,990.0,0.00023,7]
[312907110,1706454482106,152.42,0.00021882,2]
[312907113,1706454570073,247.64,0.00019946,2]
[312907114,1706454570302,247.64,0.0002221,2]
[312907115,1706454588095,161.71,0.00021864,2]
[312907116,1706454598649,737.6,0.00021864,2]
[312907117,1706454609618,-1000.0,0.00042095,30]
[312907118,1706454609641,-1000.0,0.00042095,30]
[312907119,1706454609664,-1000.0,0.00042095,30]
[312907120,1706454609686,-180.49949996,0.00042095,30]
[312907121,1706454609708,-2883.87002494,0.00042095,30]
[312907122,1706454609730,-466.52828087,0.00042095,30]
[312907123,1706454609875,-348.69553355,0.00042095,30]
[312907124,1706454609897,-805.69913567,0.00042095,30]
[312907125,1706454609918,-2514.56762977,0.00042095,30]
[312907126,1706454609939,-968.58229251,0.00042095,30]
[312907127,1706454609960,-674.68867575,0.00042095,30]
[312907128,1706454609982,-1024.55037995,0.00042095,30]
[312907129,1706454610003,-2500.0,0.00042095,30]
[312907130,1706454610025,-789.13570753,0.00042095,30]
[312907131,1706454610047,-3000.0,0.00042095,30]
[312907132,1706454610070,-796.68370449,0.00042095,30]
[312907133,1706454610095,-3443.24156086,0.00042095,30]
[312907134,1706454610118,-190.6895879,0.00042095,30]
[312907135,1706454610141,-886.17604231,0.00042095,30]
[312907136,1706454610165,-321.69379796,0.00042095,30]
[312907137,1706454610186,-915.34509272,0.00042095,30]
[312907138,1706454610208,-987.97642414,0.00042095,30]
[312907139,1706454610230,-815.46796877,0.00042095,30]
[312907140,1706454610252,-186.45579039,0.00042095,30]
[312907141,1706454610274,-3079.24117071,0.00042095,30]
[312907142,1706454610296,-1675.69093359,0.00042095,30]
[312907143,1706454610318,-2512.69470111,0.00042095,30]
[312907144,1706454610340,-7558.27131241,0.00042095,30]
[312907145,1706454610362,-100000.0,0.00042095,30]
[312907146,1706454610384,-546.09921757,0.00042095,30]
[312907147,1706454610407,-115222.08596107,0.00042095,30]
[312907148,1706454610433,-222.87484091,0.00042095,30]
[312907149,1706454610457,-284.38010451,0.00042095,120]
[312907150,1706454610479,-1548.25314164,0.00042095,120]
[312907151,1706454610501,-626.65884844,0.00042095,30]
[312907152,1706454610522,-220.59498116,0.00042095,90]
[312907153,1706454610544,-80000.0,0.00042095,30]
[312907154,1706454610566,-187.31726453,0.00042095,120]
[312907155,1706454610588,-153.579526,0.00042095,120]
[312907156,1706454610610,-156.04344933,0.00042095,60]
[312907157,1706454610632,-1517.07287334,0.00042095,120]
[312907158,1706454610655,-507.86117634,0.00042095,120]
[312907159,1706454610678,-219.54939017,0.00042095,120]
[312907160,1706454610700,-1000.0,0.00042095,30]
[312907161,1706454610722,-50000.0,0.00042095,30]
[312907162,1706454610742,-16376.36491905,0.00042095,31]
[312907163,1706454610764,-24617.94582879,0.00042095,31]
[312907164,1706454610789,-184.98423625,0.00042095,120]
[312907165,1706454610812,-197.0,0.00042095,120]
[312907166,1706454610834,-494567.66089497,0.00042095,30]
[312907167,1706454610856,-69117.22809807,0.00042095,30]
[312907168,1706454617037,-83120.96190193,0.00042095,30]
[312907169,1706454617059,-733.56597641,0.00042095,120]
[312907170,1706454617080,-28499.62343197,0.00042095,30]
[312907171,1706454617103,-84599.6999427,0.00042095,30]
[312907172,1706454617125,-11874.91965304,0.00042095,120]
[312907173,1706454617147,-380.11307926,0.00042095,120]
[312907174,1706454617181,-381.59355872,0.00042095,120]
[312907175,1706454617203,-712.90201267,0.00042095,120]
[312907176,1706454617223,-590612.18586506,0.00042095,30]
[312907177,1706454617244,-148138.0,0.00042095,30]
[312907178,1706454617265,-443.40254054,0.00042095,30]
[312907179,1706454617286,-1944.34835676,0.00042095,60]
[312907180,1706454617310,-222.5227008,0.00042095,30]
[312907181,1706454617333,-743.41777025,0.00042095,60]
[312907182,1706454617359,-2101.41887812,0.00042095,120]
[312907183,1706454617381,-30000.0,0.00042095,30]
[312907184,1706454617403,-15491.32433177,0.00042095,120]
[312907185,1706454620906,-173891.53829799,0.00042095,120]
[312907186,1706454620929,-202209.59746325,0.00042095,120]
[312907187,1706454620951,-589.34963425,0.00042095,120]
[312907188,1706454620973,-2056.0,0.00042095,30]
[312907189,1706454620995,-5500.0,0.00042095,120]
[312907190,1706454621022,-268.0,0.00042095,120]
[312907191,1706454621045,-1000.0,0.00042095,30]
[312907192,1706454621067,-1000.0,0.00042095,30]
[312907193,1706454621092,-1000.0,0.00042095,30]
[312907194,1706454621119,-1000.0,0.00042095,30]
[312907195,1706454621141,-1000.0,0.00042095,30]
[312907196,1706454621165,-1027.47490284,0.00042095,30]
[312907197,1706454621188,-467.94984896,0.00042095,30]
[312907198,1706454621209,-675.71921806,0.00042095,30]
[312907199,1706454621233,-2062.62429828,0.00042095,30]
[312907200,1706454621254,-1723.71991814,0.00042095,30]
[312907201,1706454621275,-1798.75476811,0.00042095,30]
[312907202,1706454621297,-216.32349182,0.00042095,30]
[312907203,1706454621319,-2876.53752467,0.00042095,30]
[312907204,1706454621342,-1384.03624533,0.00042095,30]
[312907205,1706454621364,-2063.91253448,0.00042095,30]
[312907206,1706454621386,-596188.46185382,0.00042095,120]
[312907207,1706454626424,-1058679.6718026,0.00042095,120]
[312907208,1706454626445,-194209.74581169,0.00042095,120]
[312907209,1706454626470,-1001.0,0.00042095,30]
[312907210,1706454626493,-964.20919906,0.00042095,30]
[312907211,1706454626513,-1381.36680657,0.00042095,30]
[312907212,1706454626534,-1352.10780721,0.00042095,30]
[312907213,1706454626557,-11534.51760764,0.00042095,120]
[312907214,1706454626579,-244.21749947,0.00042095,30]
[312907215,1706454626601,-1235.94291209,0.00042095,30]
[312907216,1706454626627,-1723.05772636,0.00042095,30]
[312907217,1706454626650,-1806.29465174,0.00042095,30]
[312907218,1706454626670,-1605.58545853,0.00042095,30]
[312907219,1706454626691,-2794571.52694047,0.00042095,120]
[312907220,1706454626712,-535.64199987,0.00042095,30]
[312907221,1706454626733,-1162.90386993,0.00042095,30]
[312907222,1706454626754,-1203.19351955,0.00042095,30]
[312907223,1706454626775,-389.41970564,0.00042095,30]
[312907224,1706454626797,-2472.052353,0.00042095,30]
[312907225,1706454626818,-1030.17409165,0.00042095,30]
[312907226,1706454626839,-1055.2326964,0.00042095,30]
[312907227,1706454626860,-1886.24448569,0.00042095,30]
[312907228,1706454626884,-1110.285612,0.00042095,30]
[312907229,1706454626908,-306.575788,0.00042095,30]
[312907233,1706454631386,-240.30506348,0.00022628,2]
[312907234,1706454631395,-418.15493652,0.00022628,2]
[312907235,1706454631407,-624.13,0.00022628,2]
[312907236,1706454631443,-2590.39047576,0.00022628,2]
[312907237,1706454631452,-59.63219392,0.00022629,2]
[312907238,1706454632787,-940.36780608,0.00022629,2]
[312907239,1706454632796,-165.39665399,0.00022715,2]
[312907240,1706454632806,-165.39665393,0.00022741,2]
[312907241,1706454632815,-165.39665393,0.00022768,2]
[312907242,1706454632825,-161.35903848,0.00022768,2]
[312907243,1706454632835,-1343.0,0.0002277,2]
[312907244,1706454632844,-165.39665393,0.00022794,2]
[312907245,1706454632853,-150.0,0.00022798,2]
[312907246,1706454632862,-9368.2764,0.00022799,2]
[312907247,1706454632871,-733.26,0.00022799,2]
[312907248,1706454632880,-1226.93251545,0.000228,2]
[312907249,1706454632889,-1226.93251538,0.00022814,2]
[312907250,1706454632899,-500.0,0.00022815,2]